fUSD/lending_fUSD_20250320
["ID","MTS","AMOUNT","RATE_DAILY","PERIOD"]
[356417473,1742429455873,-500.0,0.00027887,2]
[356417474,1742429455883,-500.0,0.00027887,2]
[356417475,1742429455893,-1060.63,0.00027887,2]
[356417476,1742429455903,-500.0,0.00027887,2]
[356417477,1742429455916,-500.0,0.00027887,2]
[356417478,1742429455925,-500.0,0.00027887,2]
[356417479,1742429455934,-836.52,0.00027887,2]
[356417480,1742429455944,-500.0,0.00027887,2]
[356417481,1742429455955,-1287.31,0.00027887,2]
[356417482,1742429455964,-500.0,0.00027887,2]
[356417483,1742429455973,-889.47,0.00027887,2]
[356417484,1742429455982,-151.0,0.0002789,7]
[356417485,1742429455994,-153.477013,0.0002789,7]
[356417486,1742429456004,-229.583782,0.0002789,7]
[356417487,1742429456013,-151.856191,0.0002789,7]
[356417488,1742429456023,-151.856191,0.0002789,7]
[356417489,1742429456033,-151.0,0.0002789,7]
[356417490,1742429456044,-151.0,0.0002789,7]
[356417491,1742429456054,-150.0,0.00027895,2]
[356417492,1742429456064,-2668.48819749,0.00027896,2]
[356417493,1742429456074,-6985.76143438,0.00027896,2]
[356417494,1742429456083,-6985.76143438,0.00027896,2]
[356417495,1742429456093,-6985.76143438,0.00027896,2]
[356417496,1742429456103,-6985.76143438,0.00027896,2]
[356417497,1742429456113,-6985.76143438,0.00027896,2]
[356417498,1742429456122,-151.0,0.00027896,7]
[356417499,1742429456131,-151.856191,0.00027896,7]
[356417500,1742429456141,-151.856191,0.00027896,7]
[356417501,1742429456150,-151.0,0.00027896,7]
[356417502,1742429456159,-204.267183,0.00027896,7]
[356417503,1742429456168,-1000.0,0.00027896,2]
[356417504,1742429456178,-1512.66964,0.00027896,40]
[356417505,1742429456187,-203.139034,0.000279,7]
[356417506,1742429456196,-900.0,0.000279,10]
[356417507,1742429456205,-587.43,0.000279,2]
[356417508,1742429456215,-500.0,0.00027908,2]
[356417509,1742429456224,-500.0,0.00027908,2]
[356417510,1742429456234,-599.17930028,0.00027909,2]
[356417511,1742429456243,-500.0,0.00027909,2]
[356417512,1742429456253,-500.0,0.00027909,2]
[356417513,1742429456262,-500.0,0.00027909,2]
[356417514,1742429456271,-593.43899196,0.00027909,2]
[356417515,1742429456281,-534.1773797,0.00027909,2]
[356417516,1742429456291,-551.58822402,0.00027909,2]
[356417517,1742429456300,-500.0,0.00027909,2]
[356417518,1742429456309,-500.0,0.00027909,2]
[356417519,1742429456319,-151.0,0.00027909,7]
[356417520,1742429456328,-151.0,0.00027909,7]
[356417521,1742429456338,-151.856191,0.00027909,7]
[356417522,1742429456348,-151.856191,0.00027909,7]
[356417523,1742429456357,-151.856191,0.00027909,7]
[356417524,1742429456366,-151.856191,0.00027909,7]
[356417525,1742429456376,-151.0,0.00027909,7]
[356417526,1742429456385,-423.20245469,0.00027909,2]
[356417527,1742429456395,-1096.46,0.00027909,2]
[356417528,1742429456406,-500.0,0.00027909,2]
[356417529,1742429456416,-665.26,0.00027909,2]
[356417530,1742429456425,-1303.63,0.00027909,2]
[356417531,1742429456435,-1027.65,0.00027909,2]
[356417532,1742429456445,-500.0,0.00027909,2]
[356417533,1742429456454,-588.93,0.00027909,2]
[356417534,1742429456465,-500.0,0.00027909,2]
[356417535,1742429456475,-500.0,0.00027909,2]
[356417536,1742429456485,-1021.64,0.00027909,2]
[356417537,1742429456494,-668.28,0.00027909,2]
[356417538,1742429456503,-1003.55,0.00027909,2]
[356417539,1742429456514,-500.0,0.00027909,2]
[356417540,1742429456523,-592.74,0.00027909,2]
[356417541,1742429456532,-919.0,0.00027909,2]
[356417542,1742429456541,-932.67,0.00027909,2]
[356417543,1742429456551,-934.25,0.00027909,2]
[356417544,1742429456561,-500.0,0.00027909,2]
[356417545,1742429456570,-500.0,0.00027909,2]
[356417546,1742429456580,-500.0,0.00027909,2]
[356417547,1742429456590,-2314.69,0.00027909,2]
[356417548,1742429456599,-644.44,0.00027909,2]
[356417549,1742429456609,-858.81,0.00027909,2]
[356417550,1742429456619,-919.72,0.00027909,2]
[356417551,1742429456629,-755.1,0.00027909,2]
[356417552,1742429456639,-1110.46,0.00027909,2]
[356417553,1742429456648,-500.0,0.00027909,2]
[356417554,1742429456658,-668.07,0.00027909,2]
[356417555,1742429456668,-500.0,0.00027909,2]
[356417556,1742429456679,-500.0,0.00027909,2]
[356417557,1742429456688,-500.0,0.00027909,2]
[356417558,1742429456698,-999.48,0.00027909,2]
[356417559,1742429456708,-500.0,0.00027909,2]
[356417560,1742429456718,-500.0,0.00027909,2]
[356417561,1742429456727,-500.0,0.00027909,2]
[356417562,1742429456737,-152.428986,0.0002791,7]
[356417563,1742429456747,-151.856191,0.0002791,7]
[356417564,1742429456757,-151.856191,0.0002791,7]
[356417565,1742429456767,-151.856191,0.0002791,7]
[356417566,1742429456776,-151.856191,0.0002791,7]
[356417567,1742429456786,-852.91,0.00027918,60]
[356417568,1742429456795,-852.91,0.00027918,60]
[356417569,1742429456805,-852.91,0.00027918,60]
[356417570,1742429456814,-852.91,0.00027918,60]
[356417571,1742429456823,-852.91,0.00027918,60]
[356417572,1742429456833,-852.91,0.00027918,60]
[356417573,1742429456842,-852.91,0.00027918,60]
[356417574,1742429456852,-852.91,0.00027918,60]
[356417575,1742429456864,-852.91,0.00027918,60]
[356417576,1742429456875,-852.91,0.00027918,60]
[356417577,1742429456886,-852.91,0.00027918,60]
[356417578,1742429456896,-852.91,0.00027918,60]
[356417579,1742429456906,-852.91,0.00027918,60]
[356417580,1742429456921,-852.91,0.00027918,60]
[356417581,1742429456931,-852.91,0.00027918,60]
[356417582,1742429456940,-852.91,0.00027918,60]
[356417583,1742429456950,-852.91,0.00027918,60]
[356417584,1742429456960,-852.91,0.00027918,60]
[356417585,1742429456969,-852.91,0.00027918,60]
[356417586,1742429456979,-852.91,0.00027918,60]
[356417587,1742429456991,-852.91,0.00027918,60]
[356417588,1742429457001,-852.91,0.00027918,60]
[356417589,1742429457011,-852.91,0.00027918,60]
[356417590,1742429457033,-853.0874384,0.00027918,60]
[356417591,1742429457043,-500.0,0.00027918,2]
[356417592,1742429457053,-500.0,0.00027918,2]
[356417593,1742429457064,-158.65368329,0.00027919,2]
[356417594,1742429457074,-150.0,0.00027919,2]
[356417595,1742429457084,-368.05512109,0.0002792,120]
[356417596,1742429457093,-1275.2680479,0.0002792,120]
[356417597,1742429457103,-1087.0,0.0002792,120]
[356417598,1742429457115,-500.0,0.0002792,2]
[356417599,1742429457125,-500.0,0.0002792,2]
[356417600,1742429457135,-807.93,0.0002792,2]
[356417601,1742429457144,-1038.77,0.0002792,2]
[356417602,1742429457154,-510.35,0.0002792,2]
[356417603,1742429457163,-500.0,0.0002792,2]
[356417604,1742429457174,-500.0,0.0002792,2]
[356417605,1742429457184,-500.0,0.0002792,2]
[356417606,1742429457195,-500.0,0.0002792,2]
[356417607,1742429457204,-500.0,0.0002792,2]
[356417608,1742429457213,-666.84,0.0002792,2]
[356417609,1742429457223,-607.36,0.0002792,2]
[356417610,1742429457232,-500.0,0.0002792,2]
[356417611,1742429457242,-852.8,0.0002792,2]
[356417612,1742429457252,-500.0,0.0002792,2]
[356417613,1742429457262,-500.0,0.0002792,2]
[356417614,1742429457271,-500.0,0.0002792,2]
[356417615,1742429457281,-500.0,0.0002792,2]
[356417616,1742429457290,-500.0,0.0002792,2]
[356417617,1742429457300,-1322.23,0.0002792,2]
[356417618,1742429457310,-500.0,0.0002792,2]
[356417619,1742429457322,-500.0,0.0002792,2]
[356417620,1742429457332,-500.0,0.00027927,2]
[356417621,1742429457342,-500.0,0.00027928,2]
[356417622,1742429457352,-500.0,0.00027928,2]
[356417623,1742429457364,-500.0,0.00027928,2]
[356417624,1742429457373,-500.0,0.00027928,2]
[356417625,1742429457383,-500.0,0.00027928,2]
[356417626,1742429457392,-500.0,0.00027928,2]
[356417627,1742429457402,-500.0,0.00027928,2]
[356417628,1742429457413,-1067.0,0.00027928,2]
[356417629,1742429457422,-500.0,0.00027928,2]
[356417630,1742429457433,-727.32,0.00027928,2]
[356417631,1742429457443,-500.0,0.00027928,2]
[356417632,1742429457453,-500.0,0.00027928,2]
[356417633,1742429457463,-500.0,0.00027928,2]
[356417634,1742429457472,-500.0,0.00027928,2]
[356417635,1742429457482,-500.0,0.00027928,2]
[356417636,1742429457492,-500.0,0.00027928,2]
[356417637,1742429457501,-500.0,0.00027928,2]
[356417638,1742429457510,-733.99,0.00027928,2]
[356417639,1742429457520,-500.0,0.00027928,2]
[356417640,1742429457530,-560.99,0.00027928,2]
[356417641,1742429457539,-557.24,0.00027928,2]
[356417642,1742429457549,-2429.87,0.00027928,2]
[356417643,1742429457558,-1348.17,0.00027928,2]
[356417644,1742429457568,-500.0,0.00027928,2]
[356417645,1742429457579,-500.0,0.00027928,2]
[356417646,1742429457589,-500.0,0.00027928,2]
[356417647,1742429457598,-500.0,0.00027928,2]
[356417648,1742429457608,-500.0,0.00027928,2]
[356417649,1742429457618,-500.0,0.00027928,2]
[356417650,1742429457628,-500.0,0.00027928,2]
[356417651,1742429457638,-2000.0,0.00027928,30]
[356417652,1742429457648,-500.0,0.00027928,2]
[356417653,1742429457659,-610.35,0.00027928,2]
[356417654,1742429457669,-1458.76,0.00027928,2]
[356417655,1742429457679,-500.0,0.00027928,2]
[356417656,1742429457689,-817.74,0.00027928,2]
[356417657,1742429457699,-500.0,0.00027928,2]
[356417658,1742429457709,-273.66766877,0.00027928,2]
[356417659,1742429457718,-573.64,0.00027928,2]
[356417660,1742429457727,-668.32,0.00027928,2]
[356417661,1742429457736,-1066.122063,0.00027928,2]
[356417662,1742429457745,-500.0,0.00027928,2]
[356417663,1742429457754,-500.0,0.00027928,2]
[356417664,1742429457765,-500.0,0.00027928,2]
[356417665,1742429457774,-741.24,0.00027928,2]
[356417666,1742429457784,-500.0,0.00027928,2]
[356417667,1742429457793,-884.76,0.00027928,2]
[356417668,1742429457802,-874.150544,0.00027928,2]
[356417669,1742429457811,-500.0,0.00027928,2]
[356417670,1742429457820,-516.99813652,0.00027928,2]
[356417671,1742429457829,-1398.42,0.00027928,2]
[356417672,1742429457839,-517.35,0.00027928,2]
[356417673,1742429457848,-815.99,0.00027928,2]
[356417674,1742429457857,-528.47,0.00027928,2]
[356417675,1742429457867,-677.6,0.00027928,2]
[356417676,1742429457876,-663.32,0.00027928,2]
[356417677,1742429457885,-500.0,0.00027928,2]
[356417678,1742429457895,-500.0,0.00027928,2]
[356417679,1742429457906,-558.1,0.00027928,2]
[356417680,1742429457920,-500.0,0.00027928,2]
[356417681,1742429457929,-500.0,0.00027928,2]
[356417682,1742429457939,-936.25,0.00027928,2]
[356417683,1742429457948,-500.0,0.00027928,2]
[356417684,1742429457958,-500.0,0.00027928,2]
[356417685,1742429457967,-679.48,0.00027928,2]
[356417686,1742429457976,-500.0,0.00027928,2]
[356417687,1742429457986,-500.0,0.00027928,2]
[356417688,1742429457995,-500.0,0.00027928,2]
[356417689,1742429458005,-500.0,0.00027928,2]
[356417690,1742429458014,-868.8,0.00027928,2]
[356417691,1742429458024,-500.0,0.00027928,2]
[356417692,1742429458034,-1176.38,0.00027928,2]
[356417693,1742429458043,-785.4,0.00027928,2]
[356417694,1742429458053,-821.33,0.00027928,2]
[356417695,1742429458062,-739.48,0.00027928,2]
[356417696,1742429458071,-500.0,0.00027928,2]
[356417697,1742429458081,-500.0,0.00027928,2]
[356417698,1742429458090,-546.35,0.00027928,2]
[356417699,1742429458099,-500.0,0.00027928,2]
[356417700,1742429458109,-697.24,0.00027928,2]
[356417701,1742429458118,-722.61,0.00027928,2]
[356417702,1742429458127,-500.0,0.00027928,2]
[356417703,1742429458136,-500.0,0.00027928,2]
[356417704,1742429458145,-500.0,0.00027928,2]
[356417705,1742429458154,-3586.23,0.00027928,2]
[356417706,1742429458163,-736.12,0.00027928,2]
[356417707,1742429458173,-1097.43,0.00027928,2]
[356417708,1742429458182,-1474.64,0.00027928,2]
[356417709,1742429458191,-500.0,0.00027928,2]
[356417710,1742429458200,-500.0,0.00027928,2]
[356417711,1742429458209,-1280.33,0.00027928,2]
[356417712,1742429458218,-862.32,0.00027928,2]
[356417713,1742429458228,-783.16,0.00027928,2]
[356417714,1742429458236,-752.13,0.00027928,2]
[356417715,1742429458246,-1602.83,0.00027928,2]
[356417716,1742429458254,-613.42,0.00027928,2]
[356417717,1742429458263,-1019.87,0.00027928,2]
[356417718,1742429458272,-721.01,0.00027928,2]
[356417719,1742429458282,-500.0,0.00027928,2]
[356417720,1742429458291,-989.3,0.00027928,2]
[356417721,1742429458300,-500.0,0.00027928,2]
[356417722,1742429458309,-747.45,0.00027928,2]
[356417723,1742429458318,-500.0,0.00027928,2]
[356417724,1742429458327,-500.0,0.00027928,2]
[356417725,1742429458336,-500.0,0.00027928,2]
[356417726,1742429458345,-613.99,0.00027928,2]
[356417727,1742429458354,-698.32,0.00027928,2]
[356417728,1742429458364,-694.45,0.00027928,2]
[356417729,1742429458373,-500.0,0.00027928,2]
[356417730,1742429458383,-500.0,0.00027928,2]
[356417731,1742429458392,-500.0,0.00027928,2]
[356417732,1742429458402,-500.0,0.00027928,2]
[356417733,1742429458410,-500.0,0.00027928,2]
[356417734,1742429458419,-500.0,0.00027928,2]
[356417735,1742429458428,-1054.21,0.00027928,2]
[356417736,1742429458436,-500.0,0.00027928,2]
[356417737,1742429458446,-998.29,0.00027928,2]
[356417738,1742429458455,-500.0,0.00027928,2]
[356417739,1742429458464,-632.64,0.00027928,2]
[356417740,1742429458473,-1059.54,0.00027928,2]
[356417741,1742429458482,-500.0,0.00027928,2]
[356417742,1742429458490,-500.0,0.00027928,2]
[356417743,1742429458499,-1292.07,0.00027928,2]
[356417744,1742429458508,-726.3,0.00027928,2]
[356417745,1742429458517,-203.51305345,0.00027928,2]
[356417746,1742429458537,-653.19694655,0.00027928,2]
[356417747,1742429458547,-500.0,0.00027928,2]
[356417748,1742429458558,-500.0,0.00027928,2]
[356417749,1742429458567,-585.41,0.00027928,2]
[356417750,1742429458577,-665.41,0.00027928,2]
[356417751,1742429458586,-500.0,0.00027928,2]
[356417752,1742429458595,-852.57,0.00027928,2]
[356417753,1742429458604,-122.01562573,0.00027928,2]
[356417754,1742429458618,-755.64437427,0.00027928,2]
[356417755,1742429458631,-1145.44,0.00027928,2]
[356417756,1742429458640,-500.0,0.00027928,2]
[356417757,1742429458810,-500.0,0.00027928,2]
[356417758,1742429458820,-546.67,0.00027928,2]
[356417759,1742429458830,-500.0,0.00027928,2]
[356417760,1742429458840,-527.46,0.00027928,2]
[356417761,1742429458850,-601.7,0.00027928,2]
[356417762,1742429458860,-642.55,0.00027928,2]
[356417763,1742429458870,-1444.41,0.00027928,2]
[356417764,1742429458880,-594.29,0.00027928,2]
[356417765,1742429458890,-561.98,0.00027928,2]
[356417766,1742429458899,-853.47,0.00027928,2]
[356417767,1742429458911,-812.3,0.00027928,2]
[356417768,1742429458924,-511.43,0.00027928,2]
[356417769,1742429458935,-718.36,0.00027928,2]
[356417770,1742429458944,-500.0,0.00027928,2]
[356417771,1742429458955,-500.0,0.00027928,2]
[356417772,1742429458965,-500.0,0.00027928,2]
[356417773,1742429458976,-500.0,0.00027928,2]
[356417774,1742429458986,-633.27,0.00027928,2]
[356417775,1742429458996,-508.84995289,0.00027928,2]
[356417776,1742429459008,-1076.81,0.00027928,2]
[356417777,1742429459018,-531.66,0.00027928,2]
[356417778,1742429459027,-500.0,0.00027928,2]
[356417779,1742429459037,-920.66,0.00027928,2]
[356417780,1742429459046,-500.0,0.00027928,2]
[356417781,1742429459056,-500.0,0.00027928,2]
[356417782,1742429459067,-500.0,0.00027928,2]
[356417783,1742429459077,-511.28,0.00027928,2]
[356417784,1742429459087,-500.0,0.00027928,2]
[356417785,1742429459098,-500.0,0.00027928,2]
[356417786,1742429459107,-514.3,0.00027928,2]
[356417787,1742429459118,-786.12,0.00027928,2]
[356417788,1742429459129,-555.8,0.00027928,2]
[356417789,1742429459140,-500.0,0.00027928,2]
[356417790,1742429459151,-500.0,0.00027928,2]
[356417791,1742429459161,-916.67,0.00027928,2]
[356417792,1742429459171,-500.0,0.00027928,2]
[356417793,1742429459181,-397.55219453,0.00027928,2]
[356417794,1742429459191,-606.34,0.00027928,2]
[356417795,1742429459201,-1423.16,0.00027928,2]
[356417796,1742429459211,-514.51,0.00027928,2]
[356417797,1742429459220,-500.0,0.00027928,2]
[356417798,1742429459228,-527.4,0.00027928,2]
[356417799,1742429459238,-771.71,0.00027928,2]
[356417800,1742429459248,-1968.02,0.00027928,2]
[356417801,1742429459258,-890.3,0.00027928,2]
[356417802,1742429459269,-972.67,0.00027928,2]
[356417803,1742429459279,-1255.95,0.00027928,2]
[356417804,1742429459288,-500.0,0.00027928,2]
[356417805,1742429459298,-747.03,0.00027928,2]
[356417806,1742429459308,-500.0,0.00027928,2]
[356417807,1742429459318,-1355.2,0.00027928,2]
[356417808,1742429459327,-565.73,0.00027928,2]
[356417809,1742429459337,-514.95,0.00027928,2]
[356417810,1742429459347,-1417.74,0.00027928,2]
[356417811,1742429459357,-500.0,0.00027928,2]
[356417812,1742429459368,-1664.63,0.00027928,2]
[356417813,1742429459377,-160.22067019,0.00027928,2]
[356417814,1742429459388,-1385.47,0.00027928,2]
[356417815,1742429459398,-757.84929075,0.00027928,2]
[356417816,1742429459412,-274.66070925,0.00027928,2]
[356417817,1742429459422,-636.34,0.00027928,2]
[356417818,1742429459432,-1005.05,0.00027928,2]
[356417819,1742429459441,-500.0,0.00027929,2]
[356417820,1742429459451,-1175.8,0.00027929,2]
[356417821,1742429459461,-283.95461683,0.00027929,2]
[356417822,1742429459471,-500.0,0.00027929,2]
[356417823,1742429459481,-500.0,0.00027929,2]
[356417824,1742429459490,-500.0,0.00027929,2]
[356417825,1742429459500,-503.87593965,0.00027929,2]
[356417826,1742429459511,-531.91,0.00027929,2]
[356417827,1742429459520,-500.0,0.00027929,2]
[356417828,1742429459530,-500.0,0.00027929,2]
[356417829,1742429459540,-589.81,0.00027929,2]
[356417830,1742429459550,-500.0,0.00027929,2]
[356417831,1742429459560,-500.0,0.00027929,2]
[356417832,1742429459570,-779.96,0.00027929,2]
[356417833,1742429459580,-876.08,0.00027929,30]
[356417834,1742429459589,-500.0,0.00027929,2]
[356417835,1742429459600,-500.0,0.00027929,2]
[356417836,1742429459614,-500.0,0.00027929,2]
[356417837,1742429459623,-606.94,0.00027929,2]
[356417838,1742429459633,-500.0,0.00027929,2]
[356417839,1742429459644,-500.0,0.00027929,2]
[356417840,1742429459653,-500.0,0.00027929,2]
[356417841,1742429459663,-65.66106827,0.00027929,2]
[356417842,1742429459676,-434.33893173,0.00027929,2]
[356417843,1742429459686,-500.0,0.00027929,2]
[356417844,1742429459696,-500.0,0.00027929,2]
[356417845,1742429459706,-500.0,0.00027929,2]
[356417846,1742429459716,-500.0,0.00027929,2]
[356417847,1742429459726,-500.0,0.00027929,2]
[356417848,1742429459736,-500.0,0.00027929,2]
[356417849,1742429459746,-781.06,0.00027929,2]
[356417850,1742429459756,-500.0,0.00027929,2]
[356417851,1742429459766,-167.18169785,0.00027929,2]
[356417852,1742429459776,-500.0,0.00027929,2]
[356417853,1742429459786,-522.68,0.00027929,2]
[356417854,1742429459796,-500.0,0.00027929,2]
[356417855,1742429459806,-541.89223228,0.00027929,2]
[356417856,1742429459816,-500.0,0.00027929,2]
[356417857,1742429459826,-500.0,0.00027929,2]
[356417858,1742429459836,-500.0,0.00027929,2]
[356417859,1742429459846,-513.63889657,0.00027929,2]
[356417860,1742429459856,-500.0,0.00027929,2]
[356417861,1742429459867,-500.0,0.00027929,2]
[356417862,1742429459877,-170.11886595,0.00027929,2]
[356417863,1742429459886,-427.71015834,0.00027929,2]
[356417864,1742429459898,-72.28984166,0.00027929,2]
[356417865,1742429459908,-258.20195398,0.00027929,2]
[356417866,1742429460509,-220.99084248,0.00027732,2]
[356417867,1742429460521,-468.35974573,0.00027831,2]
[356417868,1742429460687,-31.64025427,0.00027831,2]
[356417869,1742429460700,-500.0,0.00027886,2]
[356417870,1742429460714,-241.79804602,0.00027929,2]
[356417871,1742429460728,-500.0,0.00027929,2]
[356417872,1742429460742,-500.0,0.00027929,2]
[356417873,1742429460755,-82.44351138,0.00027929,2]
[356417874,1742429461451,-417.55648862,0.00027929,2]
[356417875,1742429461461,-500.0,0.00027929,2]
[356417876,1742429461470,-500.0,0.00027929,2]
[356417877,1742429461479,-500.0,0.00027929,2]
[356417878,1742429461489,-275.52549182,0.00027929,2]
[356417879,1742429461505,-224.47450818,0.00027929,2]
[356417880,1742429461515,-500.0,0.00027929,2]
[356417881,1742429461526,-103.84212097,0.00027929,2]
[356417882,1742429462475,-151.0,0.00027818,7]
[356417883,1742429462486,-192.68934666,0.00027819,2]
[356417884,1742429462496,-1625.55,0.00027832,2]
[356417885,1742429462507,-454.93787903,0.00027929,2]
[356417886,1742429462519,-809.17,0.00027929,2]
[356417887,1742429462529,-500.0,0.00027929,2]
[356417888,1742429462539,-500.0,0.00027929,2]
[356417889,1742429462549,-500.0,0.00027929,2]
[356417890,1742429462558,-500.0,0.00027929,2]
[356417891,1742429462567,-500.0,0.00027929,2]
[356417892,1742429462577,-481.25588145,0.00027929,2]
[356417893,1742429462586,-500.0,0.00027929,2]
[356417894,1742429462596,-500.0,0.00027929,2]
[356417895,1742429462606,-547.06,0.00027929,2]
[356417896,1742429462617,-724.54,0.00027929,2]
[356417897,1742429462627,-581.54705434,0.00027929,2]
[356417898,1742429462636,-861.1,0.00027929,2]
[356417899,1742429462645,-765.51,0.00027929,2]
[356417900,1742429462655,-500.0,0.00027929,2]
[356417901,1742429462665,-600.81,0.00027929,2]
[356417902,1742429462674,-500.0,0.00027929,2]
[356417903,1742429462683,-500.0,0.00027929,2]
[356417904,1742429462693,-500.0,0.00027929,2]
[356417905,1742429462703,-838.32,0.00027929,2]
[356417906,1742429462712,-500.0,0.00027929,2]
[356417907,1742429462721,-877.03,0.00027929,2]
[356417908,1742429462731,-868.68,0.00027929,2]
[356417909,1742429462740,-351.14,0.00027929,2]
[356417910,1742429462750,-500.0,0.00027929,2]
[356417911,1742429462760,-199.95078658,0.00027929,2]
[356417912,1742429462773,-641.19487279,0.00027929,2]
[356417913,1742429462785,-55.97434063,0.00027929,2]
[356417914,1742429462795,-577.2,0.00027929,2]
[356417915,1742429462805,-500.0,0.00027929,2]
[356417916,1742429462815,-500.0,0.00027929,2]
[356417917,1742429462824,-627.93,0.00027929,2]
[356417918,1742429462834,-500.0,0.00027929,2]
[356417919,1742429462843,-500.0,0.00027929,2]
[356417920,1742429462853,-545.31,0.00027929,2]
[356417921,1742429462862,-500.0,0.00027929,2]
[356417922,1742429462872,-680.4,0.00027929,2]
[356417923,1742429462881,-500.0,0.00027929,2]
[356417924,1742429462891,-1763.55,0.00027929,2]
[356417925,1742429462901,-598.69,0.00027929,2]
[356417926,1742429462912,-500.0,0.00027929,2]
[356417927,1742429462928,-607.25666688,0.00027929,2]
[356417928,1742429462938,-864.59,0.00027929,2]
[356417929,1742429462947,-500.0,0.00027929,2]
[356417930,1742429462959,-529.7,0.00027929,2]
[356417931,1742429462968,-500.0,0.00027929,2]
[356417932,1742429462978,-564.2,0.00027929,2]
[356417933,1742429462989,-500.0,0.00027929,2]
[356417934,1742429462999,-500.0,0.00027929,2]
[356417935,1742429463011,-567.74,0.00027929,2]
[356417936,1742429463021,-975.75,0.00027929,2]
[356417937,1742429463031,-500.0,0.00027929,2]
[356417938,1742429463042,-500.0,0.00027929,2]
[356417939,1742429463052,-500.0,0.00027929,2]
[356417940,1742429463064,-500.0,0.00027929,2]
[356417941,1742429463075,-1049.13,0.00027929,2]
[356417942,1742429463086,-500.0,0.00027929,2]
[356417943,1742429463096,-500.0,0.00027929,2]
[356417944,1742429463107,-500.0,0.00027929,2]
[356417945,1742429463119,-500.0,0.00027929,2]
[356417946,1742429463129,-500.0,0.00027929,2]
[356417947,1742429463139,-500.0,0.00027929,2]
[356417948,1742429463150,-588.50325522,0.00027929,2]
[356417949,1742429463161,-579.48,0.00027929,2]
[356417950,1742429463171,-500.0,0.00027929,2]
[356417951,1742429463183,-500.0,0.00027929,2]
[356417952,1742429463193,-613.24,0.00027929,2]
[356417953,1742429463203,-500.0,0.00027929,2]
[356417954,1742429463213,-500.0,0.00027929,2]
[356417955,1742429463222,-606.13,0.00027929,2]
[356417956,1742429463232,-536.86,0.00027929,2]
[356417957,1742429463243,-500.0,0.00027929,2]
[356417958,1742429463252,-555.6,0.00027929,2]
[356417959,1742429463262,-500.0,0.00027929,2]
[356417960,1742429463272,-500.0,0.00027929,2]
[356417961,1742429463282,-500.0,0.00027929,2]
[356417962,1742429463292,-500.0,0.00027929,2]
[356417963,1742429463302,-500.0,0.00027929,2]
[356417964,1742429463312,-964.77,0.00027929,2]
[356417965,1742429463321,-1124.21,0.00027929,2]
[356417966,1742429463332,-754.87,0.00027929,2]
[356417967,1742429463341,-500.0,0.00027929,2]
[356417968,1742429463351,-500.0,0.00027929,2]
[356417969,1742429463361,-560.09,0.00027929,2]
[356417970,1742429463371,-500.0,0.00027929,2]
[356417971,1742429463380,-710.63,0.00027929,2]
[356417972,1742429463391,-500.0,0.00027929,2]